[Event "Early-Titled-Tuesday-Blitz-October-03-2023"]
[Site "Chess.com"]
[Date "2023.10.03"]
[Round "5"]
[White "Rosh1610"]
[Black "mmDarko"]
[Result "0-1"]
[WhiteElo "2446"]
[BlackElo "2315"]
[TimeControl "180+1"]
[EndTime "8:56:03 PDT"]
[Termination "mmDarko won by resignation"]

1. e4 {[%clk 0:02:58.6]} 1... e6 {[%clk 0:02:33.4]} 2. d4 {[%clk 0:02:56.6]}
2... d5 {[%clk 0:01:57.6]} 3. Nc3 {[%clk 0:02:54.5]} 3... Bb4 {[%clk 0:01:56.7]}
4. exd5 {[%clk 0:02:50.4]} 4... exd5 {[%clk 0:01:51]} 5. Bd3 {[%clk 0:02:47.6]}
5... Nf6 {[%clk 0:01:46.7]} 6. Ne2 {[%clk 0:02:45.8]} 6... O-O {[%clk 0:01:43]}
7. O-O {[%clk 0:02:43.9]} 7... c6 {[%clk 0:01:43]} 8. Bg5 {[%clk 0:02:41.7]}
8... Bd6 {[%clk 0:01:42.6]} 9. f3 {[%clk 0:02:40.8]} 9... Be6 {[%clk 0:01:35.5]}
10. Qd2 {[%clk 0:02:39.1]} 10... Nbd7 {[%clk 0:01:31]} 11. Rae1 {[%clk
0:02:34.4]} 11... Qc7 {[%clk 0:01:19.1]} 12. Nf4 {[%clk 0:02:29.2]} 12... Rae8
{[%clk 0:01:01.7]} 13. h3 {[%clk 0:02:24]} 13... h6 {[%clk 0:00:34.5]} 14. Nxe6
{[%clk 0:02:23]} 14... Rxe6 {[%clk 0:00:31.9]} 15. Rxe6 {[%clk 0:02:20.2]} 15...
fxe6 {[%clk 0:00:30.1]} 16. Bxf6 {[%clk 0:02:18.4]} 16... Rxf6 {[%clk
0:00:24.7]} 17. Re1 {[%clk 0:02:05.3]} 17... Qb6 {[%clk 0:00:21.1]} 18. Kh1
{[%clk 0:01:57.6]} 18... Nf8 {[%clk 0:00:18]} 19. Nd1 {[%clk 0:01:52.1]} 19...
Bb8 {[%clk 0:00:13.8]} 20. c3 {[%clk 0:01:52.3]} 20... Qc7 {[%clk 0:00:13.8]}
21. Kg1 {[%clk 0:01:45.9]} 21... Qh2+ {[%clk 0:00:13]} 22. Kf2 {[%clk 0:01:46]}
22... Bg3+ {[%clk 0:00:12.2]} 23. Ke2 {[%clk 0:01:46.1]} 23... Qxg2+ {[%clk
0:00:10.2]} 24. Ke3 {[%clk 0:01:46.5]} 24... Qxd2+ {[%clk 0:00:08.3]} 25. Kxd2
{[%clk 0:01:47.4]} 25... Bxe1+ {[%clk 0:00:09]} 26. Kxe1 {[%clk 0:01:48.3]}
26... Rxf3 {[%clk 0:00:09.1]} 27. Nf2 {[%clk 0:01:48.9]} 27... Rxf2 {[%clk
0:00:06.3]} 28. Kxf2 {[%clk 0:01:49]} 28... Kf7 {[%clk 0:00:06.8]} 29. Kf3
{[%clk 0:01:48.9]} 29... Kf6 {[%clk 0:00:07.1]} 30. Ke3 {[%clk 0:01:36.9]} 30...
Nd7 {[%clk 0:00:06.9]} 31. Kf3 {[%clk 0:01:37]} 31... Nf8 {[%clk 0:00:05.2]} 32.
Ke3 {[%clk 0:01:36.3]} 32... Ng6 {[%clk 0:00:05.3]} 33. Be2 {[%clk 0:01:32.6]}
33... Nh4 {[%clk 0:00:04.6]} 34. Bg4 {[%clk 0:01:30.5]} 34... Nf5+ {[%clk
0:00:04.7]} 35. Kf2 {[%clk 0:01:29.4]} 35... e5 {[%clk 0:00:04.2]} 36. dxe5+
{[%clk 0:01:28.8]} 36... Kxe5 {[%clk 0:00:04.4]} 37. Bh5 {[%clk 0:01:28.8]}
37... g5 {[%clk 0:00:04.4]} 38. Be8 {[%clk 0:01:28.1]} 38... c5 {[%clk
0:00:04.5]} 39. Bd7 {[%clk 0:01:27.8]} 39... b6 {[%clk 0:00:05]} 40. Kf3 {[%clk
0:01:26.8]} 40... Nh4+ {[%clk 0:00:04.6]} 41. Kg4 {[%clk 0:01:26.7]} 41... Ng2
{[%clk 0:00:04]} 42. Kh5 {[%clk 0:01:26.1]} 42... Kf6 {[%clk 0:00:02.8]} 43.
Kxh6 {[%clk 0:01:24.8]} 43... Nf4 {[%clk 0:00:03.3]} 44. Bc8 {[%clk 0:01:21.1]}
44... d4 {[%clk 0:00:03.6]} 45. cxd4 {[%clk 0:01:20.2]} 45... cxd4 {[%clk
0:00:04.5]} 46. Bg4 {[%clk 0:01:20.5]} 46... d3 {[%clk 0:00:04.7]} 47. a4 {[%clk
0:01:10.2]} 47... d2 {[%clk 0:00:04.7]} 48. b3 {[%clk 0:01:07.6]} 48... Nxh3
{[%clk 0:00:04.6]} 49. Kh5 {[%clk 0:01:05.1]} 49... Nf2 {[%clk 0:00:04.8]} 50.
Bf3 {[%clk 0:01:05.1]} 50... d1=Q {[%clk 0:00:04.7]} 51. Bxd1 {[%clk 0:01:06]}
51... Nxd1 {[%clk 0:00:04.9]} 52. a5 {[%clk 0:01:06.9]} 52... bxa5 {[%clk
0:00:04.7]} 53. b4 {[%clk 0:01:07.8]} 53... axb4 {[%clk 0:00:04.9]} 54. Kg4
{[%clk 0:01:07.2]} 54... b3 {[%clk 0:00:05.4]} 0-1

[Event "Early-Titled-Tuesday-Blitz-October-03-2023"]
[Site "Chess.com"]
[Date "2023.10.03"]
[Round "5"]
[White "Verony64"]
[Black "NaciSAN"]
[Result "0-1"]
[WhiteElo "2222"]
[BlackElo "2132"]
[TimeControl "180+1"]
[EndTime "8:56:03 PDT"]
[Termination "NaciSAN won by resignation"]

1. e4 {[%clk 0:03:00.9]} 1... d6 {[%clk 0:02:59.5]} 2. Nc3 {[%clk 0:02:58.5]}
2... Nf6 {[%clk 0:02:59.9]} 3. d3 {[%clk 0:02:58.2]} 3... g6 {[%clk 0:02:59.1]}
4. g3 {[%clk 0:02:58.7]} 4... Bg7 {[%clk 0:02:59]} 5. Bg2 {[%clk 0:02:59.3]}
5... O-O {[%clk 0:02:59.2]} 6. f4 {[%clk 0:02:59.6]} 6... c5 {[%clk 0:02:57.3]}
7. Nf3 {[%clk 0:03:00]} 7... Nc6 {[%clk 0:02:56.7]} 8. O-O {[%clk 0:03:00.4]}
8... Bg4 {[%clk 0:02:56.6]} 9. h3 {[%clk 0:03:00.7]} 9... Bxf3 {[%clk
0:02:56.8]} 10. Bxf3 {[%clk 0:03:01.2]} 10... Nd4 {[%clk 0:02:56.3]} 11. Bg2
{[%clk 0:03:01.4]} 11... b5 {[%clk 0:02:55.5]} 12. Be3 {[%clk 0:03:01.8]} 12...
Rb8 {[%clk 0:02:53.8]} 13. Qd2 {[%clk 0:03:02]} 13... b4 {[%clk 0:02:52]} 14.
Nd1 {[%clk 0:03:01.1]} 14... Qc7 {[%clk 0:02:39]} 15. c3 {[%clk 0:03:01.1]}
15... bxc3 {[%clk 0:02:38.4]} 16. bxc3 {[%clk 0:03:01.3]} 16... Nb5 {[%clk
0:02:35.4]} 17. Rc1 {[%clk 0:02:52.7]} 17... Na3 {[%clk 0:02:34.7]} 18. Nf2
{[%clk 0:02:51.5]} 18... Nd7 {[%clk 0:02:33.9]} 19. d4 {[%clk 0:02:45.2]} 19...
c4 {[%clk 0:02:31.7]} 20. e5 {[%clk 0:02:45]} 20... Rb5 {[%clk 0:02:25]} 21. Ne4
{[%clk 0:02:40.1]} 21... Rfb8 {[%clk 0:02:21.7]} 22. Qe1 {[%clk 0:02:22.9]}
22... Rb2 {[%clk 0:02:20.1]} 23. Rf2 {[%clk 0:02:23]} 23... d5 {[%clk
0:02:15.1]} 24. Ng5 {[%clk 0:02:13.7]} 24... e6 {[%clk 0:02:13]} 25. g4 {[%clk
0:02:06.8]} 25... h6 {[%clk 0:02:07.3]} 26. Nf3 {[%clk 0:02:04.3]} 26... Rxf2
{[%clk 0:02:00.5]} 27. Qxf2 {[%clk 0:02:02.8]} 27... Qb6 {[%clk 0:02:00.1]} 28.
f5 {[%clk 0:01:40.6]} 28... Qb2 {[%clk 0:01:44.1]} 29. Qh4 {[%clk 0:01:38]}
29... Qe2 {[%clk 0:01:39.8]} 30. Re1 {[%clk 0:00:56.9]} 30... Rb1 {[%clk
0:01:39.1]} 31. Kh2 {[%clk 0:00:35.7]} 31... Rxe1 {[%clk 0:01:35.3]} 32. Qxe1
{[%clk 0:00:35.1]} 32... Qxe1 {[%clk 0:01:06.9]} 33. Nxe1 {[%clk 0:00:36]} 33...
Nb6 {[%clk 0:00:57.9]} 34. fxe6 {[%clk 0:00:27.5]} 34... fxe6 {[%clk 0:00:57.3]}
35. g5 {[%clk 0:00:20.4]} 35... h5 {[%clk 0:00:54.7]} 36. Nf3 {[%clk 0:00:15.3]}
36... Na4 {[%clk 0:00:47.8]} 37. Nh4 {[%clk 0:00:13.4]} 37... Kf7 {[%clk
0:00:46.3]} 38. Bd2 {[%clk 0:00:11.6]} 38... Nb1 {[%clk 0:00:42.6]} 39. Bc1
{[%clk 0:00:09.6]} 39... Naxc3 {[%clk 0:00:40]} 40. Bf1 {[%clk 0:00:08.7]} 40...
Bf8 {[%clk 0:00:34.1]} 41. a3 {[%clk 0:00:07]} 41... Bxa3 {[%clk 0:00:32.6]} 42.
Bxa3 {[%clk 0:00:05.6]} 42... Nxa3 {[%clk 0:00:33.5]} 43. Ng2 {[%clk 0:00:05.8]}
43... Nc2 {[%clk 0:00:32.6]} 44. Nf4 {[%clk 0:00:06]} 44... Nxd4 {[%clk
0:00:29.8]} 45. h4 {[%clk 0:00:05.9]} 45... a5 {[%clk 0:00:27.1]} 46. Bh3 {[%clk
0:00:06.1]} 46... a4 {[%clk 0:00:26.4]} 47. Kg3 {[%clk 0:00:06.7]} 47... a3
{[%clk 0:00:26.4]} 48. Kf2 {[%clk 0:00:06.9]} 48... a2 {[%clk 0:00:26.6]} 0-1

[Event "Early-Titled-Tuesday-Blitz-October-03-2023"]
[Site "Chess.com"]
[Date "2023.10.03"]
[Round "5"]
[White "temus_galaktionov"]
[Black "NelsonLinda"]
[Result "1-0"]
[WhiteElo "2859"]
[BlackElo "2591"]
[TimeControl "180+1"]
[EndTime "8:56:04 PDT"]
[Termination "temus_galaktionov won by resignation"]

1. d4 {[%clk 0:03:00.1]} 1... Nf6 {[%clk 0:02:59.8]} 2. Nf3 {[%clk 0:03:00.2]}
2... g6 {[%clk 0:03:00.1]} 3. c4 {[%clk 0:03:00]} 3... Bg7 {[%clk 0:03:00.6]} 4.
Nc3 {[%clk 0:02:59.9]} 4... O-O {[%clk 0:03:01.3]} 5. e4 {[%clk 0:02:59.9]} 5...
d6 {[%clk 0:03:02.1]} 6. Be2 {[%clk 0:02:59.9]} 6... e5 {[%clk 0:03:02.6]} 7.
O-O {[%clk 0:03:00]} 7... Nc6 {[%clk 0:03:02.7]} 8. d5 {[%clk 0:03:00.2]} 8...
Ne7 {[%clk 0:03:03.1]} 9. Ne1 {[%clk 0:03:00.9]} 9... Nd7 {[%clk 0:03:02.8]} 10.
f3 {[%clk 0:03:01.6]} 10... f5 {[%clk 0:03:01.6]} 11. g4 {[%clk 0:03:02.5]}
11... f4 {[%clk 0:02:41.4]} 12. h4 {[%clk 0:03:01.1]} 12... Kh8 {[%clk
0:02:05.7]} 13. Bd2 {[%clk 0:03:00.4]} 13... Ng8 {[%clk 0:02:02.5]} 14. Ng2
{[%clk 0:02:59.8]} 14... Ngf6 {[%clk 0:01:48.2]} 15. Be1 {[%clk 0:02:57.8]}
15... a5 {[%clk 0:01:40.9]} 16. Kh2 {[%clk 0:02:55.9]} 16... Nc5 {[%clk
0:01:40.8]} 17. Bf2 {[%clk 0:02:53.7]} 17... b6 {[%clk 0:01:39.7]} 18. Ne1
{[%clk 0:02:46.8]} 18... Qd7 {[%clk 0:01:33.4]} 19. Rh1 {[%clk 0:02:46.4]} 19...
h5 {[%clk 0:01:12.1]} 20. g5 {[%clk 0:02:46]} 20... Ng4+ {[%clk 0:01:12.3]} 21.
fxg4 {[%clk 0:02:45.1]} 21... hxg4 {[%clk 0:01:13.2]} 22. Kg1 {[%clk 0:02:31]}
22... Na6 {[%clk 0:00:40.1]} 23. h5 {[%clk 0:02:22]} 23... gxh5 {[%clk
0:00:38.6]} 24. Rxh5+ {[%clk 0:02:22.9]} 24... Kg8 {[%clk 0:00:38.8]} 25. Kf1
{[%clk 0:02:12]} 25... f3 {[%clk 0:00:31.3]} 26. Bd3 {[%clk 0:02:10]} 26... Qf7
{[%clk 0:00:31.5]} 27. Rh4 {[%clk 0:02:07.1]} 27... Qg6 {[%clk 0:00:30.9]} 28.
Qd2 {[%clk 0:02:06.6]} 28... Nc5 {[%clk 0:00:30]} 29. Bg3 {[%clk 0:02:02.9]}
29... Rf7 {[%clk 0:00:24.8]} 30. Bc2 {[%clk 0:01:47.1]} 30... Bf8 {[%clk
0:00:24.3]} 31. Qh2 {[%clk 0:01:38.6]} 31... Bg7 {[%clk 0:00:20.4]} 32. Rh5
{[%clk 0:01:30.6]} 32... Bd7 {[%clk 0:00:18]} 33. b3 {[%clk 0:01:26.4]} 33...
Rff8 {[%clk 0:00:18.3]} 34. Kf2 {[%clk 0:01:25.6]} 34... Kf7 {[%clk 0:00:18.7]}
35. Nxf3 {[%clk 0:01:01.7]} 35... gxf3 {[%clk 0:00:18.1]} 36. Rh1 {[%clk
0:01:01.7]} 36... Rh8 {[%clk 0:00:15.7]} 37. Rxh8 {[%clk 0:00:59.6]} 37... Rxh8
{[%clk 0:00:16.6]} 38. Bh4 {[%clk 0:00:58.7]} 38... Qh5 {[%clk 0:00:11.2]} 39.
Qg3 {[%clk 0:00:58]} 39... Kg6 {[%clk 0:00:10.4]} 40. Nb1 {[%clk 0:00:51.8]}
40... Qg4 {[%clk 0:00:10.1]} 41. Nd2 {[%clk 0:00:50.6]} 41... Qxg3+ {[%clk
0:00:06.4]} 42. Kxg3 {[%clk 0:00:51.5]} 42... Bf8 {[%clk 0:00:06.8]} 43. Nxf3
{[%clk 0:00:50.6]} 43... Be7 {[%clk 0:00:07.3]} 44. Rh2 {[%clk 0:00:48]} 44...
Rf8 {[%clk 0:00:07.1]} 45. Nd2 {[%clk 0:00:46.1]} 45... Bc8 {[%clk 0:00:05.5]}
46. Rf2 {[%clk 0:00:45.6]} 46... Rxf2 {[%clk 0:00:04.2]} 47. Kxf2 {[%clk
0:00:46.5]} 47... Kh5 {[%clk 0:00:05.1]} 48. Kg3 {[%clk 0:00:46.1]} 48... Bd7
{[%clk 0:00:05.3]} 49. Nf3 {[%clk 0:00:45.6]} 49... Bg4 {[%clk 0:00:04.2]} 50.
g6 {[%clk 0:00:46]} 50... Bxh4+ {[%clk 0:00:03.2]} 51. Nxh4 {[%clk 0:00:46.9]}
51... Bd7 {[%clk 0:00:03.5]} 52. g7 {[%clk 0:00:46.6]} 1-0

[Event "Early-Titled-Tuesday-Blitz-October-03-2023"]
[Site "Chess.com"]
[Date "2023.10.03"]
[Round "5"]
[White "hakanazeri2"]
[Black "PoXerStar"]
[Result "1-0"]
[WhiteElo "2605"]
[BlackElo "2421"]
[TimeControl "180+1"]
[EndTime "8:56:04 PDT"]
[Termination "hakanazeri2 won by resignation"]

1. Nf3 {[%clk 0:03:00.9]} 1... Nc6 {[%clk 0:02:57.3]} 2. c4 {[%clk 0:02:52.9]}
2... Nf6 {[%clk 0:02:51.2]} 3. d4 {[%clk 0:02:51]} 3... e6 {[%clk 0:02:51]} 4.
Nc3 {[%clk 0:02:50.7]} 4... Bb4 {[%clk 0:02:50.8]} 5. Qc2 {[%clk 0:02:49.7]}
5... d6 {[%clk 0:02:49.7]} 6. a3 {[%clk 0:02:49.6]} 6... Bxc3+ {[%clk
0:02:49.6]} 7. Qxc3 {[%clk 0:02:50.5]} 7... O-O {[%clk 0:02:49.5]} 8. g3 {[%clk
0:02:47.5]} 8... Qe7 {[%clk 0:02:35.4]} 9. Bg2 {[%clk 0:02:44.5]} 9... e5 {[%clk
0:02:35.7]} 10. dxe5 {[%clk 0:02:41.6]} 10... dxe5 {[%clk 0:02:35.2]} 11. O-O
{[%clk 0:02:41.8]} 11... Bf5 {[%clk 0:02:20.3]} 12. b4 {[%clk 0:02:30.2]} 12...
Rad8 {[%clk 0:02:18.1]} 13. Bb2 {[%clk 0:02:27.4]} 13... Nd4 {[%clk 0:02:12.2]}
14. Nxd4 {[%clk 0:02:26.5]} 14... exd4 {[%clk 0:02:12.3]} 15. Qd2 {[%clk
0:02:23.2]} 15... Be4 {[%clk 0:02:11.4]} 16. Rad1 {[%clk 0:02:09.8]} 16... b6
{[%clk 0:01:53]} 17. f3 {[%clk 0:01:40.2]} 17... Bg6 {[%clk 0:01:49]} 18. Bxd4
{[%clk 0:01:38.3]} 18... c5 {[%clk 0:01:27.6]} 19. bxc5 {[%clk 0:01:37]} 19...
bxc5 {[%clk 0:01:27]} 20. Qe3 {[%clk 0:01:32.3]} 20... Qc7 {[%clk 0:01:13.3]}
21. Bxc5 {[%clk 0:01:19.2]} 21... Rfe8 {[%clk 0:01:12.9]} 22. Rxd8 {[%clk
0:01:13.9]} 22... Qxd8 {[%clk 0:01:12.6]} 23. Qd4 {[%clk 0:01:13.4]} 23... Qc8
{[%clk 0:01:09.7]} 24. e4 {[%clk 0:01:10.1]} 24... a6 {[%clk 0:01:06.4]} 25. Bd6
{[%clk 0:01:02.4]} 25... Rd8 {[%clk 0:01:02.1]} 26. c5 {[%clk 0:01:02]} 26...
Ne8 {[%clk 0:00:59.6]} 27. f4 {[%clk 0:01:00]} 27... Bh5 {[%clk 0:00:48.3]} 28.
e5 {[%clk 0:00:53.9]} 28... Nc7 {[%clk 0:00:45.7]} 29. Rb1 {[%clk 0:00:50.1]}
29... Nb5 {[%clk 0:00:40.1]} 30. Qe3 {[%clk 0:00:43.9]} 30... Bg6 {[%clk
0:00:39.5]} 31. Rb2 {[%clk 0:00:41.9]} 31... h5 {[%clk 0:00:24]} 32. a4 {[%clk
0:00:40.3]} 32... Nxd6 {[%clk 0:00:15.2]} 33. exd6 {[%clk 0:00:38]} 33... Re8
{[%clk 0:00:15.5]} 34. Qd4 {[%clk 0:00:19.8]} 34... Qe6 {[%clk 0:00:10.6]} 35.
d7 {[%clk 0:00:14.1]} 35... Rd8 {[%clk 0:00:10.7]} 36. c6 {[%clk 0:00:14]} 36...
Qe1+ {[%clk 0:00:10.8]} 37. Bf1 {[%clk 0:00:14]} 37... Bf5 {[%clk 0:00:08.3]}
38. c7 {[%clk 0:00:13.4]} 38... Rxd7 {[%clk 0:00:07.4]} 39. c8=Q+ {[%clk
0:00:13.4]} 1-0

[Event "Early-Titled-Tuesday-Blitz-October-03-2023"]
[Site "Chess.com"]
[Date "2023.10.03"]
[Round "5"]
[White "hurricane7791"]
[Black "Mr_ruthless"]
[Result "1-0"]
[WhiteElo "2711"]
[BlackElo "2500"]
[TimeControl "180+1"]
[EndTime "8:56:05 PDT"]
[Termination "hurricane7791 won by resignation"]

1. d4 {[%clk 0:03:00.9]} 1... Nf6 {[%clk 0:02:58.8]} 2. c4 {[%clk 0:03:00]} 2...
c5 {[%clk 0:02:59.2]} 3. d5 {[%clk 0:02:58]} 3... d6 {[%clk 0:02:59]} 4. Nc3
{[%clk 0:02:57.5]} 4... g6 {[%clk 0:02:59.3]} 5. e4 {[%clk 0:02:57.7]} 5... Bg7
{[%clk 0:02:59.7]} 6. h3 {[%clk 0:02:58.5]} 6... e6 {[%clk 0:02:58.1]} 7. Nf3
{[%clk 0:02:57.7]} 7... Na6 {[%clk 0:02:54.4]} 8. Bd3 {[%clk 0:02:57.5]} 8...
Nc7 {[%clk 0:02:47.3]} 9. O-O {[%clk 0:02:54.4]} 9... e5 {[%clk 0:02:46.2]} 10.
a3 {[%clk 0:02:52.1]} 10... O-O {[%clk 0:02:45.7]} 11. b4 {[%clk 0:02:52.2]}
11... b6 {[%clk 0:02:44.4]} 12. Bg5 {[%clk 0:02:32.6]} 12... h6 {[%clk
0:02:43.5]} 13. Be3 {[%clk 0:02:33.1]} 13... Nh5 {[%clk 0:02:37.7]} 14. Ne1
{[%clk 0:02:24.3]} 14... Nf4 {[%clk 0:02:21.7]} 15. Be2 {[%clk 0:02:18.1]} 15...
f5 {[%clk 0:02:19.9]} 16. exf5 {[%clk 0:02:13.7]} 16... Bxf5 {[%clk 0:02:18.2]}
17. Rc1 {[%clk 0:02:10.7]} 17... g5 {[%clk 0:02:05.6]} 18. Bf3 {[%clk
0:01:38.5]} 18... Qe7 {[%clk 0:01:43.7]} 19. Be4 {[%clk 0:01:35]} 19... Ne8
{[%clk 0:01:26]} 20. Nf3 {[%clk 0:01:33]} 20... Bxe4 {[%clk 0:01:17.8]} 21. Nxe4
{[%clk 0:01:32.6]} 21... Nf6 {[%clk 0:01:18.4]} 22. Nfd2 {[%clk 0:01:32]} 22...
Rf7 {[%clk 0:01:08.2]} 23. bxc5 {[%clk 0:01:31.9]} 23... bxc5 {[%clk 0:01:07.7]}
24. Rb1 {[%clk 0:01:31.6]} 24... Raf8 {[%clk 0:01:06.1]} 25. Qc2 {[%clk
0:01:28.3]} 25... N6h5 {[%clk 0:00:59.4]} 26. Kh2 {[%clk 0:01:23.1]} 26... g4
{[%clk 0:00:54.2]} 27. Qd1 {[%clk 0:01:11.8]} 27... gxh3 {[%clk 0:00:48.1]} 28.
g3 {[%clk 0:01:12]} 28... Nf6 {[%clk 0:00:24.8]} 29. Nxf6+ {[%clk 0:01:10.9]}
29... Qxf6 {[%clk 0:00:20.7]} 30. Qg4 {[%clk 0:01:08.6]} 30... Nd3 {[%clk
0:00:17.2]} 31. Ne4 {[%clk 0:01:06.8]} 31... Qe7 {[%clk 0:00:16.1]} 32. Kxh3
{[%clk 0:01:00.1]} 32... Kh8 {[%clk 0:00:15.9]} 33. Kg2 {[%clk 0:00:59.8]} 33...
Qd7 {[%clk 0:00:12.2]} 34. Qxd7 {[%clk 0:00:58.8]} 34... Rxd7 {[%clk 0:00:12.4]}
35. Rb3 {[%clk 0:00:54.6]} 35... Nf4+ {[%clk 0:00:11.5]} 36. gxf4 {[%clk
0:00:55]} 36... exf4 {[%clk 0:00:12.4]} 37. Bd2 {[%clk 0:00:55.7]} 37... Be5
{[%clk 0:00:13.3]} 38. Rfb1 {[%clk 0:00:54.8]} 38... Rg7+ {[%clk 0:00:13.7]} 39.
Kf3 {[%clk 0:00:55.4]} 39... h5 {[%clk 0:00:10.4]} 40. Rb8 {[%clk 0:00:50.5]}
40... Rfg8 {[%clk 0:00:07.8]} 41. Rxg8+ {[%clk 0:00:50.2]} 41... Kxg8 {[%clk
0:00:08.7]} 42. Rh1 {[%clk 0:00:50.6]} 42... Rh7 {[%clk 0:00:08.2]} 43. Bc3
{[%clk 0:00:51]} 43... Bxc3 {[%clk 0:00:06.6]} 44. Nxc3 {[%clk 0:00:51.9]} 44...
Kf7 {[%clk 0:00:07.2]} 45. Ne4 {[%clk 0:00:51.6]} 45... Kg6 {[%clk 0:00:07.2]}
46. Kxf4 {[%clk 0:00:52]} 46... Rf7+ {[%clk 0:00:07.1]} 47. Ke3 {[%clk
0:00:52.5]} 47... Rb7 {[%clk 0:00:08]} 48. Nxd6 {[%clk 0:00:52.3]} 48... Rb3+
{[%clk 0:00:08.7]} 49. Kf4 {[%clk 0:00:52.3]} 49... Rxa3 {[%clk 0:00:09.4]} 50.
Rf1 {[%clk 0:00:52.8]} 50... h4 {[%clk 0:00:07.3]} 51. Rg1+ {[%clk 0:00:53.1]}
51... Kf6 {[%clk 0:00:07.1]} 52. Ne4+ {[%clk 0:00:53.6]} 52... Kf7 {[%clk
0:00:06.7]} 53. Ke5 {[%clk 0:00:52.7]} 53... Rf3 {[%clk 0:00:06.1]} 54. Ng5+
{[%clk 0:00:52.4]} 1-0

[Event "Early-Titled-Tuesday-Blitz-October-03-2023"]
[Site "Chess.com"]
[Date "2023.10.03"]
[Round "5"]
[White "Firouzja2003"]
[Black "Anton_Demchenko"]
[Result "1-0"]
[WhiteElo "3119"]
[BlackElo "2913"]
[TimeControl "180+1"]
[EndTime "8:56:07 PDT"]
[Termination "Firouzja2003 won by resignation"]

1. d4 {[%clk 0:02:58.9]} 1... Nf6 {[%clk 0:02:55.5]} 2. c4 {[%clk 0:02:57.5]}
2... d6 {[%clk 0:02:56.2]} 3. Nf3 {[%clk 0:02:53.5]} 3... Nc6 {[%clk 0:02:56.2]}
4. Nc3 {[%clk 0:02:49.5]} 4... e5 {[%clk 0:02:55.3]} 5. g3 {[%clk 0:02:45]} 5...
Be7 {[%clk 0:02:55]} 6. Bg2 {[%clk 0:02:45.1]} 6... O-O {[%clk 0:02:55.3]} 7.
O-O {[%clk 0:02:45.5]} 7... h6 {[%clk 0:02:55.9]} 8. d5 {[%clk 0:02:29.5]} 8...
Nb8 {[%clk 0:02:51.9]} 9. e4 {[%clk 0:02:30]} 9... a5 {[%clk 0:02:50.6]} 10. Ne1
{[%clk 0:02:30.1]} 10... Na6 {[%clk 0:02:48.7]} 11. Nd3 {[%clk 0:02:27]} 11...
c6 {[%clk 0:02:38.4]} 12. h3 {[%clk 0:02:25.7]} 12... Bd7 {[%clk 0:02:28.5]} 13.
Be3 {[%clk 0:02:20.6]} 13... cxd5 {[%clk 0:02:28.2]} 14. cxd5 {[%clk 0:02:20.4]}
14... b5 {[%clk 0:02:28.1]} 15. f4 {[%clk 0:02:13]} 15... b4 {[%clk 0:02:04.6]}
16. Ne2 {[%clk 0:02:12.2]} 16... exf4 {[%clk 0:01:46.5]} 17. gxf4 {[%clk
0:02:13.1]} 17... Nc7 {[%clk 0:01:23.6]} 18. Rc1 {[%clk 0:01:51.3]} 18... Qb8
{[%clk 0:01:05.7]} 19. Nd4 {[%clk 0:01:32.3]} 19... Re8 {[%clk 0:01:05.9]} 20.
Bf2 {[%clk 0:01:25.2]} 20... Bd8 {[%clk 0:01:01.2]} 21. e5 {[%clk 0:01:17]}
21... dxe5 {[%clk 0:00:48.4]} 22. Nxe5 {[%clk 0:01:16]} 22... Nb5 {[%clk
0:00:33.9]} 23. Ndc6 {[%clk 0:00:40.7]} 23... Bxc6 {[%clk 0:00:33.6]} 24. Rxc6
{[%clk 0:00:40.7]} 24... Nd6 {[%clk 0:00:29.8]} 25. Qd3 {[%clk 0:00:37.9]} 25...
Be7 {[%clk 0:00:26.9]} 26. Rfc1 {[%clk 0:00:31]} 26... a4 {[%clk 0:00:26.6]} 27.
Bf3 {[%clk 0:00:30.6]} 27... Ra5 {[%clk 0:00:24.8]} 28. Rb6 {[%clk 0:00:29.8]}
28... Qa8 {[%clk 0:00:12.8]} 29. Nc6 {[%clk 0:00:30.3]} 29... Bf8 {[%clk
0:00:13.3]} 30. Nxa5 {[%clk 0:00:28.1]} 30... Qxa5 {[%clk 0:00:14.2]} 31. Ra6
{[%clk 0:00:27]} 31... Qd8 {[%clk 0:00:13.8]} 32. Re1 {[%clk 0:00:21.8]} 32...
Rxe1+ {[%clk 0:00:12.1]} 33. Bxe1 {[%clk 0:00:22.7]} 33... Qc8 {[%clk
0:00:10.3]} 34. Kg2 {[%clk 0:00:21.3]} 34... b3 {[%clk 0:00:06]} 35. axb3 {[%clk
0:00:20.5]} 35... axb3 {[%clk 0:00:06.9]} 36. Rc6 {[%clk 0:00:20.1]} 36... Qb7
{[%clk 0:00:06.7]} 37. Bf2 {[%clk 0:00:19.8]} 37... Qa8 {[%clk 0:00:05.6]} 38.
Qxb3 {[%clk 0:00:19.3]} 38... Qa1 {[%clk 0:00:04.7]} 39. Qc2 {[%clk 0:00:17.6]}
39... g6 {[%clk 0:00:03.8]} 40. b4 {[%clk 0:00:15.4]} 40... Qa3 {[%clk 0:00:03]}
41. Qc3 {[%clk 0:00:15.5]} 41... Be7 {[%clk 0:00:02.8]} 42. Qxa3 {[%clk
0:00:15.6]} 1-0